Cogmind - Beta 15 @@@ ROGUE MODE // 2025.05.13 @ 15:49:00 Player: laeb2 Result: Destroyed by NU-4U5(j) with Overtuned Pulse Rifle Performance ------------- Evolutions (0) 0 Regions Visited (3) 600 Robots Destroyed (27) 135 Value Destroyed (562) 562 Prototype IDs (6) 120 Alien Tech Used (0) 0 Bonus (800) 800 TOTAL SCORE: 2217 Bonus ------- Registered with UFD 300 Met Optimus in HQ 500 Cogmind --------- Core Integrity 0/250 Matter 275/300 Energy 88/100 System Corruption 12% Temperature Cool (29) Movement Rolling (135) Ox3 Location -7/Scraptown Parts ------- > --- POWER (1) -------- (None) > --- PROPULSION (2) --- Wheel Compact Wheel > --- UTILITY (2) ------ Huge Storage Unit Makeshift Light Armor Plating > --- WEAPON (2) ------- Chainsword > --- INVENTORY (25) --- Improved Deuterium Engine Light Treads Medium Treads Improved Heat Sink Huge Storage Unit Structural Scanner Advanced Sensor Array Signal Interpreter Signal Interpreter Improved Terrain Scanner Seismic Detector Energy Filter Microactuators Tractor Beam Riot Gun Minigun High-powered Shotgun Heavy Battle Rifle Makeshift Shrapnel Gun Shock Bomb Launcher Heavy Rocket Launcher Datajack Peak State ------------ > --- POWER ------------ Improved Deuterium Engine > --- PROPULSION ------- Compact Wheel Compact Wheel > --- UTILITY ---------- Huge Storage Unit Makeshift Light Armor Plating > --- WEAPON ----------- Plasma Rifle Thermic Laser > --- INVENTORY -------- Deuterium Engine Light Treads Medium Treads Wheel Wheel Improved Heat Sink Huge Storage Unit Structural Scanner Advanced Sensor Array Signal Interpreter Signal Interpreter Improved Terrain Scanner Seismic Detector Energy Filter Microactuators Tractor Beam Riot Gun Assault Rifle Assault Rifle Minigun Heavy Battle Rifle Shock Bomb Launcher Heavy Rocket Launcher Datajack Makeshift Axe [Rating: 26] Favorites ----------- Power Light Ion Engine Engine Light Ion Engine Propulsion Compact Wheel Wheel Compact Wheel Utility Huge Storage Unit Device Improved Terrain Scanner Storage Huge Storage Unit Processor Signal Interpreter Protection Makeshift Light Armor Plating Weapon Beam Cannon Energy Gun Medium Laser Energy Cannon Beam Cannon Ballistic Gun Light Assault Rifle Launcher Grenade Launcher Slashing Weapon Chainsword Build | -11 -10 -10 -7 ------- Run | Yrd Mat Sub Scr Slots Evolved . | . . . . Power . | . . . . Propulsion . | . . . . Utility . | . . . . Weapon . | . . . . Parts Attached 33 | 8 11 2 12 Power 5 | 1 2 . 2 Engine 5 | 1 2 . 2 Core . | . . . . Reactor . | . . . . Propulsion 8 | 2 3 . 3 Treads . | . . . . Leg . | . . . . Wheel 8 | 2 3 . 3 Hover . | . . . . Flight . | . . . . Utility 8 | 2 4 . 2 Device 3 | 1 1 . 1 Storage 3 | 1 2 . . Processor 1 | . 1 . . Hackware . | . . . . Protection 1 | . . . 1 Artifact . | . . . . Weapon 12 | 3 2 2 5 Energy Gun 5 | 2 . 1 2 Energy Cannon 1 | . 1 . . Ballistic Gun 2 | 1 1 . . Ballistic Cannon . | . . . . Launcher 1 | . . 1 . Special Weapon . | . . . . Impact Weapon . | . . . . Slashing Weapon 3 | . . . 3 Piercing Weapon . | . . . . Special Melee Weapon . | . . . . Unidentified Prototypes . | . . . . Parts Lost 11 | . 6 . 5 Power 2 | . 1 . 1 Propulsion 5 | . 3 . 2 Utility . | . . . . Weapon 4 | . 2 . 2 Highest Loss Streak 4 | . 2 . 4 To Critical Strikes . | . . . . Average Backups 20 | 5 11 25 24 Power . | 1 . 1 1 Propulsion 3 | 2 1 4 3 Utility 9 | . 5 13 11 Weapon 5 | 1 3 6 7 Tool/Special . | . . . . Unused Backups 34 | 2 2 2 28 Power 2 | . . . 2 Propulsion 7 | 2 2 . 3 Utility 11 | . . . 11 Weapon 13 | . . 2 11 Tool/Special 1 | . . . 1 Average Slot Usage (%) 98 | . 96 100 99 Engine 13 | . 11 14 13 Wheel 27 | . 27 28 27 Device 5 | . 12 . 2 Storage 14 | . 14 14 14 Processor 5 | . 1 14 5 Protection 3 | . . . 6 Energy Gun 11 | . 12 5 13 Energy Cannon 6 | . 4 14 5 Ballistic Gun 3 | . 11 4 . Slashing Weapon 5 | . . . 9 Peak Build Rating 26 | 9 11 13 26 Average Rating 15 | 4 9 10 21 On Entrance 7 | . 9 9 13 Naked Turns . | . . . . Heaviest Build 102 | 15 89 89 102 Greatest Support 32 | 26 32 32 32 Greatest Overweight (x) 6 | . 2 2 6 Average Overweight (x) 2 | . . 2 2 Largest Inventory Capacity 25 | 8 25 25 25 Average Capacity 21 | 7 14 25 25 Most Carried 25 | 8 25 25 25 Average Carried 20 | 5 11 24 24 Final Capacity 25 | 8 25 25 25 Final Carried 25 | 5 25 25 22 Class Distribution -------------------- 77% | Mutant 11% | Gladiator 10% | Scavenger-Mutant Dominant Class ---------------- Mutant | -10/Materials Mutant | -10/Subcaves Mutant | -7/Scraptown Resources | -11 -10 -10 -7 ----------- Run | Yrd Mat Sub Scr Matter Collected 691 | 305 246 60 80 Remotely . | . . . . Salvage Created 964 | 139 710 115 . Parts 55 | 12 39 4 . Haulers Intercepted 1 | . 1 . . Recyclers Shooed 2 | . 2 . . Parts Field Recycled . | . . . . Retrieved Matter . | . . . . Parts Self-Destructed 5 | . . 5 . Prevented . | . . . . Kills | -11 -10 -10 -7 ------- Run | Yrd Mat Sub Scr Combat Hostiles Destroyed 15 | . 12 3 . Guns 11 | . 11 . . Cannons 1 | . 1 . . AOE 3 | . . 3 . Classes Destroyed 9 | 2 6 1 . Worker 2 | . 2 . . Builder 1 | . 1 . . Tunneler 3 | 2 1 . . Hauler 1 | . 1 . . Recycler 3 | 1 2 . . Watcher 2 | . 2 . . Swarmer 3 | . 3 . . Grunt 9 | . 9 . . Subdweller 3 | . . 3 . Best Kill Streak 5 | 2 5 1 . Combat Bots Only 5 | . 5 1 . Max Kills in Single Turn 2 | 1 2 1 . Gunslinging . | . . . . Exploded 1 | . . 1 . Melee . | . . . . Uniques/NPCs Destroyed . | . . . . Combat | -11 -10 -10 -7 -------- Run | Yrd Mat Sub Scr Hostile Shots Fired 110 | . 74 4 32 Missed 26 | . 19 . 7 Hits 84 | . 55 4 25 Projectile 84 | . 55 4 25 Critical Strikes 3 | . 2 . 1 Damage Taken 1353 | 1 674 84 594 Core 252 | . 116 17 119 Absorbed by Shields . | . . . . Core Remaining (%) 100 | 100 . . . Volleys Fired 119 | 25 90 4 . Largest 2 | 1 2 2 . Hottest 110 | 20 110 90 . Shots Fired 171 | 25 138 8 . Gun 149 | 25 124 . . Cannon 18 | . 14 4 . Launcher 4 | . . 4 . Special . | . . . . Kinetic 112 | 25 87 . . Thermal 55 | . 51 4 . Explosive 4 | . . 4 . Electromagnetic . | . . . . Robot Hit Streak 20 | 6 20 5 . Robot Miss Streak 4 | 4 3 1 . Penetration Max . | . . . . Secondary Targets . | . . . . Shots Hit Robots 121 | 13 101 7 . Core Hits 51 | 9 39 3 . Critical Kills 1 | 1 . . . Critical Parts Destroyed 1 | . 1 . . Critical Strikes 5 | 1 4 . . Burn 3 | . 3 . . Destroy 2 | 1 1 . . Melee Attacks 12 | . . . 12 Impact . | . . . . Slashing 12 | . . . 12 Piercing . | . . . . Sneak Attacks . | . . . . Combat Hostiles . | . . . . Follow-up Attacks . | . . . . Damage Inflicted 1404 | 112 1076 216 . Guns 983 | 110 873 . . Cannons 246 | . 193 53 . Explosions 163 | . . 163 . Melee . | . . . . Ramming 12 | 2 10 . . Kinetic 616 | 110 506 . . Thermal 613 | . 560 53 . Explosive 163 | . . 163 . Electromagnetic . | . . . . Impact . | . . . . Slashing . | . . . . Piercing . | . . . . Highest Corruption 12 | . . . 12 Average Corruption 12 | . . . 12 Corruption Purged . | . . . . Corruption Blocked . | . . . . Overload Shots . | . . . . Overflow Damage . | . . . . Projectiles . | . . . . Explosions . | . . . . Melee . | . . . . Knockbacks . | . . . . Impact . | . . . . Kinetic . | . . . . Secondary . | . . . . Self-Inflicted Damage 21 | 1 5 15 . Shots 1 | . . 1 . Rammed 2 | 1 1 . . Targets Rammed 2 | 1 1 . . Kicked . | . . . . Crushed . | . . . . Highest Temperature 315 | . 315 . 17 Average Temperature 76 | . 78 . 9 Received Heat Transfer 490 | . 381 . 109 Effects 2 | . 2 . . Energy Bleed 1 | . 1 . . Short Circuit 1 | . 1 . . Siege Activations . | . . . . Martial Activations . | . . . . Shielding Activations . | . . . . Robots Disrupted . | . . . . Combat Hostiles . | . . . . Robots Corrupted . | . . . . Combat Hostiles . | . . . . Parts Fried . | . . . . Impact Corruptions . | . . . . Robots Melted . | . . . . Combat Hostiles . | . . . . Parts Melted 3 | . 3 . . Heat Transferred 1813 | . 1702 111 . Parts Sabotaged . | . . . . Parts Stolen . | . . . . Parts Stripped . | . . . . Power Chain Reactions . | . . . . Alert | -11 -10 -10 -7 ------- Run | Yrd Mat Sub Scr Maximum Alert Level . | . . . . Low Security (%) 100 | 100 100 . . Level 1 . | . . . . Level 2 . | . . . . Level 3 . | . . . . Level 4 . | . . . . Level 5 . | . . . . High Security . | . . . . Max Security . | . . . . Peak Influence 193 | 10 193 . . Initial . | . . . . Average 79 | . 88 . . Influence Increases 488 | 15 473 . . Destroy 0b10 Robot/C 240 | . 240 . . Destroy 0b10 Robot/NC 60 | 15 45 . . Destroy Leader 56 | . 56 . . Successful Hack 40 | . 40 . . Destroy Structure 2 | . 2 . . Lose Combat Pursuer 90 | . 90 . . Influence Decreases 488 | 15 359 114 . Entered New Map 55 | . . 55 . Time Decay 388 | 15 314 59 . Lost Part 45 | . 45 . . Squads Dispatched 2 | . 2 . . Investigation . | . . . . Extermination . | . . . . Reinforcement 2 | . 2 . . Assault . | . . . . Garrison . | . . . . Intercept . | . . . . Searches Triggered . | . . . . Construction Impeded . | . . . . Haulers Reinforced . | . . . . Active Scanning Responses . | . . . . Cargo Convoy Interrupts . | . . . . Stealth | -11 -10 -10 -7 --------- Run | Yrd Mat Sub Scr Distress Signals 4 | . 4 . . Communications Jammed . | . . . . Distress Signals . | . . . . Times Spotted 45 | . 26 2 17 Peak Tracking Total 9 | . 9 1 9 Tactical Retreats 3 | . 3 . . Traps | -11 -10 -10 -7 ------- Run | Yrd Mat Sub Scr Traps Triggered . | . . . . Indirectly . | . . . . Trap Hack Attempts . | . . . . Triggered . | . . . . Disarmed . | . . . . Reprogrammed . | . . . . Reused . | . . . . Traps Extracted . | . . . . Installed . | . . . . Triggered . | . . . . Machines | -11 -10 -10 -7 ---------- Run | Yrd Mat Sub Scr Machines Disabled 3 | . . . 3 Max in Single Turn 1 | . . . 1 Machines Repaired . | . . . . Machines Dismantled . | . . . . Machines Sabotaged . | . . . . Overloaded Fab Kills . | . . . . Hacking | -11 -10 -10 -7 --------- Run | Yrd Mat Sub Scr Machines Accessed 8 | . 4 . 4 Terminals 4 | . 4 . . Fabricators . | . . . . Repair Stations . | . . . . Recycling Units . | . . . . Scanalyzers . | . . . . Garrison Access . | . . . . Total Hacks 42 | . 18 . 24 Successful 36 | . 12 . 24 Failed 6 | . 6 . . Catastrophic 1 | . 1 . . Database Lockouts . | . . . . Manual 5 | . 5 . . Terminals 18 | . 18 . . Fabricators . | . . . . Repair Stations . | . . . . Recycling Units . | . . . . Scanalyzers . | . . . . Garrison Access . | . . . . Terminal Hacks 32 | . 8 . 24 Record 24 | . . . 24 Robot Analysis 2 | . 2 . . Prototype ID Bank 2 | . 2 . . Hauler Manifests 1 | . 1 . . Registered Components 1 | . 1 . . Zone Layout 2 | . 2 . . Fabricator Hacks . | . . . . Repair Station Hacks . | . . . . Recycling Unit Hacks . | . . . . Scanalyzer . | . . . . Garrison Access Hacks . | . . . . Unauthorized Hacks 4 | . 4 . . Terminals 4 | . 4 . . Botnet 4 | . 4 . . Fabricators . | . . . . Repair Stations . | . . . . Recycling Units . | . . . . Scanalyzers . | . . . . Garrison Access . | . . . . Data Cores Recovered . | . . . . Used . | . . . . Hacking Detections 3 | . 3 . . Full Trace Events . | . . . . Feedback Events . | . . . . Feedback Blocked . | . . . . Robot Schematics Acquired . | . . . . Robots Built . | . . . . Authchips . | . . . . Time . | . . . . Total Robot Build Rating . | . . . . Part Schematics Acquired . | . . . . Parts Built . | . . . . Authchips . | . . . . Time . | . . . . Total Part Build Rating . | . . . . Parts Repaired . | . . . . Time . | . . . . Parts Recycled . | . . . . Recycled Matter . | . . . . Retrieved Matter . | . . . . Retrieved Components . | . . . . Parts Scanalyzed . | . . . . Part Schematics Acquired . | . . . . Parts Damaged . | . . . . Bothacking | -11 -10 -10 -7 ------------ Run | Yrd Mat Sub Scr Used RIF Installer . | . . . . Robots Hacked . | . . . . Non-combat . | . . . . Combat . | . . . . Robot Hacks Applied . | . . . . Relay Couplers Released . | . . . . Fabnet Peak Effective % . | . . . . Robots Rewired . | . . . . Allies Hacked . | . . . . Hacks Repelled . | . . . . Allies | -11 -10 -10 -7 -------- Run | Yrd Mat Sub Scr Total Allies . | . . . . Largest Group . | . . . . Highest-Rated Group . | . . . . Highest-Rated Ally . | . . . . Total Orders . | . . . . Ally Attacks . | . . . . Total Damage . | . . . . Kills . | . . . . Allies Corrupted . | . . . . Allies Melted 4 | . . . 4 Intel | -11 -10 -10 -7 ------- Run | Yrd Mat Sub Scr Active Infowar (turns) 454 | 15 439 . . Terrain 454 | 15 439 . . Robot Analysis Total 2 | . 2 . . Derelict Logs Recovered 2 | . . 2 . Drone Launches . | . . . . Drone Recoveries . | . . . . Exploration | -11 -10 -10 -7 ------------- Run | Yrd Mat Sub Scr Turns Passed 3202 | 112 921 344 1825 Spaces Moved 1975 | 44 493 234 1204 Core 8 | 8 . . . Treads . | . . . . Legs . | . . . . Wheels 1967 | 36 493 234 1204 Hover . | . . . . Flight . | . . . . Fastest Speed 50 | 50 90 130 130 Average Speed 129 | 82 107 130 139 Slowest Speed 190 | 90 130 130 190 Overloaded Moves . | . . . . Propulsion Burnouts . | . . . . Robots Hopped . | . . . . Potential Cave-ins 2 | . . . 2 Cave-ins Triggered 1 | . . . 1 Exploration Rate (%) 44 | 4 71 24 80 Regions Visited 3 Branch Regions 2 Pre-discovered Areas . | . . . . Known Exits Taken 2 | . 1 1 . Unknown Exits Taken 1 | 1 . . . Scrap Searched 8 | . . 4 4 Spaces Dug 7 | . . . 7 Terrain Destroyed 48 | . . 41 7 Melee 7 | . . . 7 Projectile . | . . . . AOE 41 | . . 41 . Terrain Rammed . | . . . . Walls Destroyed . | . . . . Machines Disabled . | . . . . Actions | -11 -10 -10 -7 --------- Run | Yrd Mat Sub Scr Total 2465 | 100 761 268 1336 Wait 220 | 7 118 21 74 Move 1972 | 44 492 233 1203 Hop . | . . . . Pick Up 65 | 14 34 4 13 Fast Attach 3 | . . . 3 Attach 19 | 7 8 . 4 Detach . | . . . . Swap 19 | 1 10 2 6 Drop 34 | 2 8 4 20 Fire 119 | 25 90 4 . Melee 12 | . . . 12 Ram 1 | . 1 . . Kick . | . . . . Crush . | . . . . Escape Stasis 1 | . . . 1 Rewire . | . . . . Trap . | . . . . Miscellaneous . | . . . . Route ------- -11/Scrapyard -10/Materials (discovered 5 exits: *Mat x2 / [*Min x2] / *Sub) -10/Subcaves (discovered 2 exits: Mat / *Scr) -7/Scraptown (discovered 1 exit: [*Fac]) History --------- Turn | Location | Event 23 | -11/Scrapyard | Discovered new exit (range 15) 113 | -11/Scrapyard | Entered Materials 142 | -10/Materials | Discovered new exit (range 16) 180 | -10/Materials | Discovered new exit (range 14) 337 | -10/Materials | Build established: Mutant 646 | -10/Materials | Discovered new exit (range 8) 925 | -10/Materials | Discovered new exit (range 10) 976 | -10/Materials | Identified exit to Materials 998 | -10/Materials | Discovered new exit (range 5) 1017 | -10/Materials | Identified exit to Subcaves 1034 | -10/Materials | Entered Subcaves 1035 | -10/Subcaves | Approached by a straggling Scientist 1083 | -10/Subcaves | Identified exit to Materials 1143 | -10/Subcaves | Core integrity fell below 50% 1362 | -10/Subcaves | Scientist uncovered a shortcut to Scraptown 1377 | -10/Subcaves | Identified exit to Scraptown 1378 | -10/Subcaves | Entered Scraptown 1427 | -7/Scraptown | Visited Red Mages 1556 | -7/Scraptown | Visited UFD Registry 1556 | -7/Scraptown | Registered with UFD as "Thunderboard" 1578 | -7/Scraptown | Visited Cyclists 1594 | -7/Scraptown | Entered Cyclist Reading Room 1634 | -7/Scraptown | Visited The Evicted 1659 | -7/Scraptown | Visited Assassins FH 1690 | -7/Scraptown | Visited Cave Peace 2251 | -7/Scraptown | Discovered new exit (range 11) 2408 | -7/Scraptown | Visited Supply Room 2434 | -7/Scraptown | Visited Curators Association 2476 | -7/Scraptown | Visited Junk Cannon Lab 2501 | -7/Scraptown | Visited Scrapoid Research Area 2520 | -7/Scraptown | Visited Scrap Suit Storage 2539 | -7/Scraptown | Visited Derelict Rescue Squad 2563 | -7/Scraptown | Visited Junk Repository 2627 | -7/Scraptown | Visited Observation Area 2689 | -7/Scraptown | Visited DA-N13 Charitable Foundation 2704 | -7/Scraptown | Found DCF Scrap (29 items) 2754 | -7/Scraptown | Visited Supply Room 2896 | -7/Scraptown | Build established: Gladiator 2928 | -7/Scraptown | Met Optimus 2928 | -7/Scraptown | Accepted into 0bPrime 3100 | -7/Scraptown | Civil war broke out across Scraptown 3153 | -7/Scraptown | Core integrity fell below 20% 3177 | -7/Scraptown | Lost 12 allies 3194 | -7/Scraptown | Crushed by falling debris 3195 | -7/Scraptown | System corruption reached 10% 3203 | -7/Scraptown | Destroyed by NU-4U5(j) with Overtuned Pulse Rifle Last Messages --------------- 03188_ Penetrated by Bolt. 03193_ 3M-IKE(p): "I'm having second thoughts about this." 03193_ Bolt penetrates Machine. 03194_ The unstable cave ceiling collapses. 03194_ Crushed by falling debris. 03194_ Chainsword destroyed. 03194_ System corrupted by crushing effect (+2). 03194_ Chainsword destroyed. 03194_ System corrupted by crushing effect (+2). 03194_ Wheel destroyed. 03194_ System corrupted by crushing effect (+3). 03194_ Imp. Deuterium Engine destroyed. 03194_ System corrupted by crushing effect (+5). 03195_ Slug penetrates WP-IAY(j). 03195_ Penetrated by Bolt. 03196_ SL-P77(j) switches sides. 03196_ SL-P77(j) destroyed. 03201_ Penetrated by Bolt. 03202_ Critical hit (Burn: +50). Map ----- +----------------------------------------------------+ | | | | | | | | | | | | | | | | | | | | | | | | | ?????????????????????????????????????????????????? | | ??????????????#########??????????????????????????? | | ??????????????#"" ##?????????????????????????? | | ??????????????#"%< #?###############??###????? | | ???######?????#""& #?#"""""""""#""""???""#????? | | ??#"""""""#???####= #?#" !"#" ?? "#????? | | ??#"" ""#???????#! #?#" =b[ """ "#????? | | ??#"" ""#???????#[! #?#" r"#" "" "#????? | | ??#""" ""#???????#[ #?#" """ "#" " "#????? | | ??#"" ""#???##?## ###" "#" "#????? | | ###""" """#####;## ##""""""r""#"" """"""#????? | | %!= !% jj[! #????? | | !%! p !!%=%! ! #????? | | *! @ !%[&[! !% #????? | | ###### ########### ####;#####"" """"#####????? | | ###### ######????## #### ##???#" "#????????? | | #""""" """""#####?# ###"#####?#" ""#????????? | | #" " " #?# "" """""#?#" """#????????? | | #" " " "### ###! " ""#?#" """#????????? | | #" " " "#"" """%=* "#?#"""""""#????????? | | #""""" """""#" """!=%" ""#?#######??????????? | | ###### ######" " !="""" """#??????????????????? | | #""""" """""#" ##"" ####?????????#######??? | | #" " " "#" "" " ####"#????????????#""#""#??? | | #" " " "#" " ### "#######??????#" X #??? | | " " "#"""""" ##"" """"""#??????#" X#??? | | #""""" """""####### ##" " "#??????# #??? | | ###### ######?????# ##""" " """#??????#"# #"#??? | | ###### ############=% ##""" " """#?######## ###??? | | %* ##" "#?#" "#??? | | ##""" """#?#X "#??? | | ################### ## #?#" "#??? | | ?????????????????# ##"" """"""#?# #??? | | #?????????######### ##" ############ ##########? | | #???????###""" # %* #? | | #?????###"" # %*!= / #? | | #?????# " # !%* !!/ #? | | #?????# " " ! %! #? | +----------------------------------------------------+ Best States ------------- Heat Dissipation 39 Energy Generation 16 Energy Capacity 290 Matter Stores 300 Matter Capacity 300 Sight Range 16 Terrain Scan Range 16 Terrain Scan Density 10 Armor Coverage 100 Melee Speed Boost 20 Evasion (%) 50 Item Schematics ----------------- None Robot Schematics ------------------ None Fabricated ------------ Nothing Repaired ---------- Nothing Alien Tech Used ----------------- None Achievements -------------- None Challenges ------------ None Game ------ Seed CooledCoolantShockpuncher Manual? 0 Play Time 00:25:24 Cumulative 92.3 hours Start 2025.05.13 @ 15:24:28 End 2025.05.13 @ 15:49:00 Sessions 1 Manual Loads 0 Difficulty Rogue Special Mode None Game No. 114 Rogue 114 Adventurer 0 Explorer 0 Win Type - Total 1 Types 1/0/0/0/0/0/0/0/0/0 Lore% 64 Gallery% 54 Achievement% 52 Wizard Run 0 Options --------- Layout 2 ASCII 0 Keyboard 0 Movement Mouse Keybinds 0 Fullscreen 1 Font 32/SmallcapsGlow Map View 50x44 Zoom Use 0% Tactical HUD 1 Map Filters NONE Filters NONE Steam 1 RUN: e73c2179-a213-4546-9c9c-20a062539481